bitfinex-derivatives/quotes_ETHF0:USTF0_20210111
["timestamp","ask_amount","ask_price","bid_price","bid_amount"]
[1610336730692,4.00959,1057.7,1055.3,1.6017]
[1610336730892,14.29233859,1058.7,1055.3,1.6017]
[1610336731092,16.16813859,1058.7,1055.3,1.6017]
[1610336731494,6.12339,1058.0,1057.7,4.00959]
[1610336731894,6.12339,1058.0,1055.3,1.6017]
[1610336732095,2.1138,1058.0,1055.3,1.6017]
[1610336732696,2.1138,1058.0,1055.4,0.0429]
[1610336733496,2.1138,1058.0,1057.9,4.00959]
[1610336733896,4.0163,1058.0,1057.9,4.00959]
[1610336734097,4.0163,1058.0,1056.2,1.9283]
[1610336735398,4.0163,1058.0,1057.9,4.00959]
[1610336736099,1.8984,1059.0,1057.9,4.00959]
[1610336736299,14.29419234,1060.5,1057.9,4.00959]
[1610336736703,14.33120356,1060.6,1057.9,4.00959]
[1610336736902,14.37823069,1061.0,1057.9,4.00959]
[1610336737303,6.1734,1061.2,1057.9,4.00959]
[1610336737503,10.18299,1061.2,1058.3,2.4525]
[1610336737703,2.71706578,1060.7,1058.3,2.4525]
[1610336739103,1.15976578,1060.7,1058.3,2.4525]
[1610336739504,1.15976578,1060.7,1060.6,4.00959]
[1610336740107,10.14479174,1064.1,1060.6,6.05119]
[1610336740505,14.77214276,1064.3,1060.6,6.05119]
[1610336740705,15.46961715,1065.2,1060.6,6.05119]
[1610336741407,4.00959,1065.4,1060.6,2.0416]
[1610336742006,15.53730307,1066.3,1060.6,2.0416]
[1610336742406,6.5045,1066.5,1060.6,2.0416]
[1610336742608,3.00041218,1066.2,1060.6,2.0416]
[1610336742805,1.44206726,1066.1,1060.6,2.0416]
[1610336743006,3.78596726,1066.1,1060.6,2.0416]
[1610336743206,15.65347983,1067.3,1060.6,2.0416]
[1610336743405,1.8293,1066.1,1060.6,2.0416]
[1610336744407,1.8293,1066.1,1060.6,2.32976055]
[1610336744607,1.8293,1066.1,1061.0,0.28812953]
[1610336745007,1.8293,1066.1,1061.0,1.6953]
[1610336745408,1.8293,1066.1,1066.0,4.00959]
[1610336745608,1.8293,1066.1,1061.0,1.98330428]
[1610336745808,1.8293,1066.1,1065.0,1.6346]
[1610336746009,2.1188,1066.7,1065.0,1.6346]
[1610336746209,0.7921,1068.7,1065.0,1.6346]
[1610336746609,16.4448806,1070.1,1065.0,1.6346]
[1610336746811,16.51410093,1070.7,1065.0,1.6346]
[1610336747209,16.51410093,1070.7,1065.0,2.459]
[1610336747409,18.32170375,1071.6,1065.0,2.459]
[1610336747410,4.00959,1068.3,1067.5,4.00959]
[1610336747610,1.9226,1068.3,1067.5,4.00959]
[1610336748011,16.54328519,1071.2,1067.5,4.00959]
[1610336748412,1.1196586,1071.6,1067.5,4.00959]
[1610336749413,4.00959,1070.3,1067.3,2.0788]
[1610336749613,1.8505,1070.3,1067.3,2.0788]
[1610336749811,1.8505,1070.3,1063.5,0.28720358]
[1610336750013,1.8505,1070.3,1063.6,0.28718782]
[1610336750513,1.8505,1070.3,1063.7,0.28721053]
[1610336750715,1.8505,1070.3,1063.6,2.075]
[1610336751115,1.8505,1070.3,1063.7,0.2872434]
[1610336751315,1.8505,1070.3,1063.6,2.36222249]
[1610336751715,2.2346,1070.3,1063.9,0.28705623]
[1610336751915,2.2346,1070.3,1064.2,0.28704093]
[1610336752316,2.2346,1070.3,1064.5,0.28694384]
[1610336752515,2.2346,1070.3,1064.5,2.51814384]
[1610336752715,2.2346,1070.3,1065.3,0.28679476]
[1610336752916,1.1196586,1071.6,1065.3,1.92109476]
[1610336753115,1.1196586,1071.6,1065.6,0.28671753]
[1610336753315,1.1196586,1071.6,1065.6,2.03961753]
[1610336753516,1.1196586,1071.6,1070.5,4.00959]
[1610336753716,1.1196586,1071.6,1070.5,6.34539]
[1610336754116,1.1196586,1071.6,1070.5,2.3358]
[1610336754825,1.1196586,1071.6,1069.9,1.7197]
[1610336755017,14.41059002,1074.5,1069.4,2.4053]
[1610336755421,4.00959,1072.1,1071.0,4.00959]
[1610336755622,4.00959,1072.1,1069.3,2.4412]
[1610336755818,5.90629,1072.1,1069.3,2.4412]
[1610336756419,5.90629,1072.1,1068.5,1.5648]
[1610336756619,2.0002,1072.1,1068.5,1.5648]
[1610336757423,2.0002,1072.1,1070.7,4.00959]
[1610336757622,2.0002,1072.1,1068.5,1.5648]
[1610336759521,2.0002,1072.1,1071.3,4.00959]
[1610336759922,16.86339002,1074.5,1071.3,1.7254]
[1610336760322,18.72599002,1074.5,1071.3,1.7254]
[1610336760524,2.4528,1074.5,1071.3,1.7254]
[1610336760725,1.1096318,1075.2,1071.3,1.7254]
[1610336760923,1.43022284,1074.4,1071.3,1.7254]
[1610336761124,3.82262284,1074.4,1071.3,1.7254]
[1610336761524,4.00959,1072.2,1071.3,1.7254]
[1610336761723,6.44789,1072.2,1071.3,1.7254]
[1610336762124,2.4383,1072.2,1069.8,2.5081]
[1610336763429,2.3924,1074.4,1071.4,4.00959]
[1610336763629,2.3372,1072.4,1071.4,6.27909]
[1610336764429,1.1096318,1075.2,1071.4,6.27909]
[1610336765232,1.42818583,1075.1,1071.4,6.27909]
[1610336765433,1.42818583,1075.1,1075.0,4.00959]
[1610336766432,1.1096318,1075.2,1074.8,2.2433]
[1610336766632,1.41024049,1078.9,1074.8,2.2433]
[1610336767433,4.00959,1076.6,1076.3,4.00959]
[1610336767633,18.51738904,1080.0,1076.3,4.00959]
[1610336767833,1.42496129,1078.8,1076.3,4.00959]
[1610336768033,3.08146129,1078.8,1075.3,2.1878]
[1610336769235,1.42359909,1078.7,1075.3,2.1878]
[1610336769434,1.42359909,1078.7,1078.3,4.00959]
[1610336769435,4.00959,1078.6,1078.3,4.00959]
[1610336769634,1.42359909,1078.7,1078.3,4.00959]
[1610336770037,1.42359909,1078.7,1078.3,1.9466]
[1610336770437,3.29659909,1078.7,1078.3,1.9466]
[1610336770636,2.3688,1080.2,1078.3,1.9466]
[1610336771437,2.3688,1080.2,1079.6,4.00959]
[1610336771637,4.2347,1080.2,1079.6,4.00959]
[1610336773041,1.8659,1080.2,1079.6,4.00959]
[1610336773440,1.08957822,1080.6,1080.1,4.00959]
[1610336773639,19.07279303,1084.5,1080.1,4.00959]
[1610336773839,19.13573664,1084.7,1080.1,4.00959]
[1610336774240,19.23792198,1085.2,1080.1,5.84659]
[1610336774846,19.31781035,1085.6,1080.1,5.84659]
[1610336775040,19.41588698,1085.8,1080.1,5.84659]
[1610336775443,19.44423893,1086.0,1080.1,5.84659]
[1610336775640,4.00959,1083.9,1083.2,4.00959]
[1610336775840,19.55107344,1086.3,1081.4,1.6863]
[1610336776042,2.89365142,1083.3,1081.4,1.6863]
[1610336776848,1.9522,1084.8,1081.4,1.6863]
[1610336777041,12.86353469,1087.8,1081.4,1.6863]
[1610336777442,19.92153709,1088.1,1081.4,1.6863]
[1610336777642,4.00959,1084.3,1081.4,3.5586]
[1610336777842,6.38989,1084.3,1081.4,3.5586]
[1610336778143,8.24449,1084.3,1081.4,3.5586]
[1610336778943,1.6774,1084.8,1081.4,3.5586]
[1610336779142,2.3799,1084.3,1081.4,1.6863]
[1610336779543,2.3799,1084.3,1083.8,4.00959]
[1610336779744,2.3799,1084.3,1081.8,1.7091]
[1610336781344,4.2365,1084.3,1081.8,1.7091]
[1610336781545,4.2365,1084.3,1084.0,4.00959]
[1610336782144,2.3799,1084.3,1083.1,2.0093]
[1610336784146,2.4305,1084.3,1082.8,2.5116]
[1610336785547,2.4305,1084.3,1084.2,4.00959]
[1610336786351,2.4305,1084.3,1083.7,2.0417]
[1610336786548,1.8712,1084.3,1083.7,2.0417]
[1610336787548,4.00959,1083.8,1083.7,2.0417]
[1610336788749,1.928,1084.4,1083.7,2.0417]
[1610336789551,4.00959,1083.9,1082.9,4.00959]
[1610336789752,5.68109,1083.9,1082.8,2.5116]
[1610336789949,5.68109,1083.9,1082.7,69.4242]
[1610336790350,1.41479139,1083.8,1082.7,69.4242]
[1610336790850,1.41479139,1083.8,1081.9,72.5226]
[1610336791651,1.41479139,1083.8,1083.0,4.00959]
[1610336791851,1.41479139,1083.8,1083.0,1.769]
[1610336793052,1.41513011,1084.3,1083.0,1.769]
[1610336793654,4.00959,1083.1,1082.4,1.7081]
[1610336794457,1.41561608,1083.0,1082.4,1.7081]
[1610336794657,2.3682,1083.5,1082.4,1.7081]
[1610336794856,1.928,1084.4,1082.4,1.7081]
[1610336795056,1.6774,1084.8,1082.4,1.7081]
[1610336795257,0.92092,1085.9,1082.4,1.7081]
[1610336795658,4.00959,1082.5,1082.4,1.7081]
[1610336795858,4.00959,1082.5,1082.4,2.0598]
[1610336796061,4.00959,1082.5,1082.1,1.7376]
[1610336796859,5.53609,1082.5,1081.9,25.0347]
[1610336797059,5.53609,1082.5,1077.7,0.2833694]
[1610336797258,1.41684634,1082.4,1077.3,0.28353507]
[1610336797661,1.41684634,1082.4,1076.9,0.28364375]
[1610336797662,4.00959,1081.0,1076.9,0.28364375]
[1610336797859,1.41684634,1082.4,1076.5,0.28371173]
[1610336797860,1.9668,1082.0,1076.5,0.28371173]
[1610336798259,1.41684634,1082.4,1080.0,2.1741]
[1610336798663,1.41708819,1080.9,1080.0,2.1741]
[1610336799063,1.6002,1081.9,1080.0,2.1741]
[1610336799265,2.1974,1083.0,1080.0,2.1741]
[1610336799664,4.00959,1081.3,1080.0,2.1741]
[1610336800066,2.0298,1083.2,1080.0,2.1741]
[1610336800264,70.4077,1082.9,1080.0,2.1741]
[1610336800663,72.3131,1082.9,1080.0,2.1741]
[1610336802267,4.00959,1080.8,1080.0,2.1741]
[1610336802467,4.00959,1080.8,1079.6,2.1085]
[1610336803067,2.334,1081.5,1079.6,2.1085]
[1610336803268,2.1487,1082.4,1079.6,2.1085]
[1610336803667,4.00959,1081.8,1079.6,2.1085]
[1610336804267,2.1487,1082.4,1079.6,2.1085]
[1610336804469,70.4077,1082.9,1079.6,2.1085]
[1610336805268,70.4077,1082.9,1079.6,2.5057]
[1610336805670,4.00959,1080.9,1080.5,4.00959]
[1610336805868,72.8875,1082.9,1080.5,4.00959]
[1610336806068,72.8875,1082.9,1080.5,1.7772]
[1610336806971,2.87654,1081.7,1080.5,1.7772]
[1610336807169,1.9533,1081.7,1079.6,2.5057]
[1610336807370,0.95872,1081.2,1079.6,2.5057]
[1610336807571,4.00959,1079.7,1079.6,2.5057]
[1610336807971,4.00959,1079.7,1079.6,2.3444]
[1610336808170,4.00959,1079.7,1078.6,64.6139]
[1610336808771,0.95872,1079.3,1078.6,64.6139]
[1610336808970,2.67412,1079.3,1077.9,75.3514]
[1610336809170,2.67412,1079.3,1074.2,0.28415539]
[1610336809371,2.67412,1079.3,1073.8,0.28426332]
[1610336809772,0.95872,1077.4,1073.8,64.4714]
[1610336809971,2.80522,1077.4,1073.8,66.0786]
[1610336810172,1.8465,1077.4,1073.8,66.0786]
[1610336810973,1.8465,1077.4,1073.8,66.0386]
[1610336811173,75.4472,1077.3,1073.8,1.6072]
[1610336811773,4.00959,1075.3,1074.6,4.00959]
[1610336811974,75.4472,1077.3,1074.6,4.00959]
[1610336812176,75.4472,1077.3,1074.6,5.73059]
[1610336813777,75.4472,1077.3,1076.6,4.00959]
[1610336813976,20.32198649,1081.2,1076.6,5.94289]
[1610336814177,19.53835177,1080.6,1076.6,5.94289]
[1610336814580,19.56760439,1080.9,1076.6,5.94289]
[1610336814781,55.7369,1080.5,1076.6,5.94289]
[1610336815678,4.00959,1078.9,1077.9,4.00959]
[1610336816178,4.00959,1078.9,1076.6,1.9333]
[1610336816778,6.07659,1078.9,1076.6,1.9333]
[1610336817480,0.92703,1078.7,1076.6,1.9333]
[1610336818881,0.92703,1078.7,1075.8,65.6643]
[1610336819079,0.92703,1078.7,1075.0,69.2053]
[1610336819578,1.42191409,1078.6,1075.0,69.2053]
[1610336819778,3.88221409,1078.6,1075.0,69.2053]
[1610336820980,1.42191409,1078.6,1075.0,69.2053]
[1610336821178,2.067,1078.9,1075.0,69.2053]
[1610336821179,1.42144179,1078.5,1075.0,69.2053]
[1610336822583,1.42079648,1079.1,1075.0,69.2053]
[1610336822781,1.42079648,1079.1,1075.0,71.0811]
[1610336823784,70.2392,1079.3,1075.1,1.46554014]
[1610336824984,20.03009349,1082.4,1075.1,1.46554014]
[1610336825188,20.0109274,1082.7,1075.1,1.74953531]
[1610336825388,19.98366379,1082.9,1075.1,2.31747377]
[1610336825586,19.98366379,1082.9,1075.2,0.28396923]
[1610336825787,19.9752877,1083.0,1075.4,0.28392943]
[1610336825987,19.9752877,1083.0,1075.4,2.55282943]
[1610336826188,19.97964213,1083.3,1075.6,0.2838673]
[1610336826590,19.98520054,1083.4,1075.8,0.28381597]
[1610336826790,1.41794224,1082.9,1075.8,2.60621597]
[1610336826988,3.63374224,1082.9,1076.1,2.55973119]
[1610336827388,3.63374224,1082.9,1076.4,0.28363003]
[1610336827587,3.63374224,1082.9,1076.6,0.28361771]
[1610336827990,1.41720897,1082.8,1076.8,0.2836016]
[1610336828588,1.41720897,1082.8,1076.9,0.28353873]
[1610336828788,1.41720897,1082.8,1076.9,2.04943873]
[1610336828989,1.41720897,1082.8,1077.1,0.28350444]
[1610336829190,1.41720897,1082.8,1077.2,0.28340802]
[1610336829390,1.41720897,1082.8,1077.2,2.61180802]
[1610336829790,1.41720897,1082.8,1077.4,0.28335452]
[1610336830191,1.41720897,1082.8,1077.5,0.28330867]
[1610336830394,1.41720897,1082.8,1077.5,1.97570867]
[1610336830591,1.41720897,1082.8,1077.6,0.28328721]
[1610336830791,1.4154702,1084.9,1077.6,0.28328721]
[1610336830992,1.4154702,1084.9,1077.7,0.28326682]
[1610336831390,1.4154702,1084.9,1077.8,0.28330579]
[1610336831592,1.4154702,1084.9,1077.8,2.75970579]
[1610336832192,1.41524466,1085.2,1077.9,1.56804297]
[1610336833594,20.30514915,1085.4,1077.9,1.56804297]
[1610336833595,1.41524485,1085.3,1077.9,1.56804297]
[1610336833997,1.41524485,1085.3,1078.1,0.2832031]
[1610336834198,1.41524485,1085.3,1078.1,2.3011031]
[1610336834398,1.41524485,1085.3,1078.1,2.0179]
[1610336834598,1.41524485,1085.3,1078.1,2.30105867]
[1610336834999,1.4146278,1085.5,1078.4,0.28314171]
[1610336835198,1.4146278,1085.5,1078.4,2.62694171]
[1610336835599,1.4146278,1085.5,1078.5,0.28309079]
[1610336835798,16.88131307,1086.0,1078.5,0.28309079]
[1610336835999,21.37646206,1087.1,1078.6,0.2830561]
[1610336836600,0.9535,1087.2,1078.6,0.2830561]
[1610336836601,22.39205348,1087.2,1078.7,0.2829811]
[1610336837001,21.48883641,1087.4,1079.0,0.28294898]
[1610336837304,21.48883641,1087.4,1079.1,0.28288764]
[1610336837701,21.4892559,1087.7,1079.2,0.28285072]
[1610336837904,2.3586,1086.0,1079.3,0.28283303]
[1610336838202,2.3586,1086.0,1079.5,0.28274331]
[1610336838603,2.3586,1086.0,1079.7,0.2827441]
[1610336839004,2.3586,1086.0,1079.8,0.2827209]
[1610336839604,2.3586,1086.0,1079.9,0.2826462]
[1610336840004,2.3586,1086.0,1080.1,0.2825895]
[1610336840204,2.3586,1086.0,1080.0,0.28264829]
[1610336840504,2.3586,1086.0,1080.0,1.95402011]
[1610336840705,2.3586,1086.0,1080.1,0.28264046]
[1610336840904,2.3586,1086.0,1080.0,1.95404868]
[1610336841304,2.3586,1086.0,1080.0,1.67137182]
[1610336841905,2.3586,1086.0,1080.1,1.67144748]
[1610336843109,21.6847776,1088.5,1080.1,1.67144748]
[1610336843310,21.6847776,1088.5,1080.2,0.28260647]
[1610336843708,23.7141776,1088.5,1080.1,0.28261246]
[1610336844210,23.7141776,1088.5,1080.2,0.28259495]
[1610336844211,3.8756,1088.5,1080.2,0.28259495]
[1610336844411,2.0294,1088.5,1080.2,0.28259495]
[1610336844611,2.0294,1088.5,1080.4,0.28251947]
[1610336845012,2.0294,1088.5,1080.5,0.2824962]
[1610336845413,3.8397,1088.5,1080.5,0.2824962]
[1610336845611,3.8397,1088.5,1080.4,0.28253579]
[1610336846014,3.8397,1088.5,1080.3,0.28253731]
[1610336846217,3.8397,1088.5,1080.6,1.67290873]
[1610336846616,3.8397,1088.5,1080.6,3.52990873]
[1610336846815,3.8397,1088.5,1080.6,1.67290873]
[1610336847018,2.0294,1088.5,1080.7,0.28236752]
[1610336847218,57.0384,1087.5,1080.8,0.28236238]
[1610336847418,58.9316,1087.5,1080.8,0.28236238]
[1610336847616,58.9316,1087.5,1080.9,0.28234205]
[1610336848619,58.9316,1087.5,1080.8,0.28240949]
[1610336849014,58.9316,1087.5,1081.0,1.67279504]
[1610336850314,58.9316,1087.5,1080.8,0.28237192]
[1610336850514,58.9316,1087.5,1080.9,0.28239465]
[1610336850814,58.9316,1087.5,1081.0,0.28236255]
[1610336851516,58.9316,1087.5,1080.9,0.2823994]
[1610336851914,58.9316,1087.5,1081.1,1.67355372]
[1610336852114,58.9316,1087.5,1081.1,4.07625372]
[1610336852715,4.00959,1085.1,1084.4,4.00959]
[1610336853216,2.236,1085.6,1081.2,6.56773372]
[1610336853415,2.236,1085.6,1081.2,8.24101537]
[1610336853619,2.236,1085.6,1081.2,7.95868165]
[1610336854016,2.236,1085.6,1081.3,0.28231525]
[1610336854218,2.236,1085.6,1081.2,8.24099949]
[1610336854418,4.00959,1085.1,1084.1,4.00959]
[1610336854617,1.9337,1085.2,1084.1,4.00959]
[1610336854817,1.9337,1085.2,1081.4,1.67315347]
[1610336855017,1.9337,1085.2,1081.4,4.14865347]
[1610336855618,58.9316,1087.5,1081.4,4.14865347]
[1610336856019,58.9316,1087.5,1081.6,0.28218339]
[1610336856220,58.9316,1087.5,1082.0,0.28212916]
[1610336856419,1.6262,1086.7,1086.4,4.00959]
[1610336857021,22.33218741,1090.5,1086.4,5.88729]
[1610336857219,26.69272768,1097.5,1086.4,5.88729]
[1610336857220,22.45648605,1091.3,1086.4,5.88729]
[1610336857620,22.50185624,1091.7,1086.4,5.88729]
[1610336857820,22.54553754,1092.0,1086.4,5.88729]
[1610336858422,22.54553754,1092.0,1086.4,1.8777]
[1610336858621,22.6253361,1092.6,1086.5,5.9097]
[1610336858823,22.66899216,1092.9,1090.1,4.00959]
[1610336859022,22.66899216,1092.9,1086.5,5.9097]
[1610336859222,3.24907105,1091.5,1089.7,2.4156]
[1610336860121,3.24907105,1091.5,1086.5,5.9097]
[1610336860922,3.24907105,1091.5,1089.3,4.00959]
[1610336861122,1.9625,1090.5,1089.3,4.00959]
[1610336861324,1.9625,1090.5,1089.3,6.00819]
[1610336862121,1.04947105,1091.5,1089.3,6.00819]
[1610336862922,1.04947105,1091.5,1089.3,1.9986]
[1610336863522,0.05906105,1092.3,1091.2,6.12439]
[1610336865123,1.03944425,1094.2,1091.2,6.12439]
[1610336865523,1.03944425,1094.2,1091.2,2.1148]
[1610336865924,4.00959,1092.1,1091.9,4.00959]
[1610336866123,1.03944425,1094.2,1091.9,4.00959]
[1610336866324,1.03944425,1094.2,1091.9,5.94979]
[1610336867124,1.03944425,1094.2,1091.9,1.9402]
[1610336867928,4.00959,1092.0,1091.9,1.9402]
[1610336868326,2.81764425,1094.2,1091.9,1.9402]
[1610336871328,2.81764425,1094.2,1091.9,2.274]
[1610336872131,2.81764425,1094.2,1091.2,2.1148]
[1610336872330,2.81764425,1094.2,1090.5,60.3061]
[1610336874233,2.81764425,1094.2,1090.5,58.3078]
[1610336874432,4.00959,1090.6,1090.5,58.3078]
[1610336874632,5.97749,1090.6,1088.8,4.00959]
[1610336875032,5.97749,1090.6,1086.4,1.8777]
[1610336875232,5.97749,1090.6,1087.0,6.3365]
[1610336875433,5.97749,1090.6,1087.0,8.1097]
[1610336876435,4.00959,1088.6,1087.0,8.1097]
[1610336876636,5.96779,1088.6,1087.0,8.1097]
[1610336878539,4.00959,1087.6,1087.0,7.6887]
[1610336878738,1.7111,1087.9,1087.0,7.6887]
[1610336878937,2.2855,1087.7,1087.0,7.6887]
[1610336879137,2.2855,1087.7,1087.1,1.83140579]
[1610336880137,1.9582,1088.6,1087.1,1.83140579]
[1610336880538,1.9582,1088.6,1088.2,4.00959]
[1610336880739,1.9582,1088.6,1087.8,1.8821]
[1610336881541,4.00959,1088.9,1087.8,1.8821]
[1610336881741,1.7289,1088.6,1087.8,1.8821]
[1610336882141,1.7289,1088.6,1087.5,2.4175]
[1610336882541,4.00959,1088.5,1088.0,4.00959]
[1610336883141,4.00959,1088.5,1087.5,2.4175]
[1610336883542,4.00959,1088.5,1087.0,7.6887]
[1610336883742,4.00959,1088.5,1087.0,7.1214]
[1610336883944,4.00959,1088.5,1086.7,2.4784]
[1610336884242,4.00959,1088.5,1084.8,0.28150834]
[1610336884543,1.7289,1088.6,1084.8,0.28150834]
[1610336884742,1.7289,1088.6,1084.8,2.1945]
[1610336886242,1.7289,1088.6,1084.9,2.18629658]
[1610336886643,1.7289,1088.6,1084.9,1.31169658]
[1610336886644,4.00959,1085.0,1084.9,1.31169658]
[1610336886845,4.00959,1085.0,1084.9,0.50679658]
[1610336887048,4.00959,1085.0,1084.9,0.01339658]
[1610336887247,4.00959,1085.0,1082.5,0.28194287]
[1610336887446,4.00959,1085.0,1082.3,0.28197385]
[1610336887746,4.00959,1085.0,1082.1,0.28199597]
[1610336888547,4.00959,1084.1,1083.3,4.00959]
[1610336889347,4.00959,1084.1,1082.2,2.12398532]
[1610336889747,6.25389,1084.1,1082.2,2.12398532]
[1610336890448,6.25389,1084.1,1082.0,2.1245191]
[1610336890647,4.00959,1083.2,1082.6,4.00959]
[1610336891047,4.00959,1083.2,1082.0,2.1245191]
[1610336892047,4.00959,1083.2,1081.4,2.12505831]
[1610336892648,4.00959,1082.3,1081.5,4.00959]
[1610336894049,76.7604,1082.1,1080.2,0.28250946]
[1610336894650,4.00959,1081.5,1080.4,4.00959]
[1610336895350,4.00959,1081.5,1080.3,2.1271917]
[1610336895550,4.00959,1081.5,1080.3,1.4932917]
[1610336895950,4.00959,1081.5,1079.3,0.56549763]
[1610336895951,4.00959,1081.5,1079.3,0.28276855]
[1610336896452,4.00959,1081.5,1079.1,68.4018]
[1610336896652,4.00959,1080.4,1079.8,4.00959]
[1610336896852,4.00959,1080.4,1078.9,0.2828752]
[1610336897257,74.8766,1081.3,1078.5,0.28309803]
[1610336897453,74.8766,1081.3,1078.5,2.10379803]
[1610336897653,74.8766,1081.3,1078.5,1.8207]
[1610336898153,72.6146,1081.3,1078.5,1.8207]
[1610336898553,72.6146,1081.3,1081.2,4.00959]
[1610336898756,72.6146,1081.3,1081.2,6.25609]
[1610336898955,128.146,1083.4,1081.2,6.25609]
[1610336899154,22.27196206,1085.8,1081.2,6.25609]
[1610336899354,22.30792718,1086.1,1081.2,6.25609]
[1610336899555,1.8234,1086.1,1081.2,6.25609]
[1610336900557,4.00959,1083.9,1082.9,4.00959]
[1610336900760,3.01823306,1086.0,1082.9,4.00959]
[1610336900958,1.5371,1083.9,1082.9,4.00959]
[1610336901760,1.6051,1086.0,1082.9,6.11469]
[1610336902562,4.00959,1084.9,1083.7,4.00959]
[1610336904660,4.00959,1084.7,1082.9,2.1051]
[1610336904861,2.0382,1085.2,1082.9,2.1051]
[1610336905861,3.8595,1085.2,1082.9,2.1051]
[1610336906664,4.00959,1085.0,1084.3,4.00959]
[1610336907064,4.00959,1085.0,1082.9,2.1051]
[1610336907264,3.8595,1085.2,1082.0,56.9623]
[1610336907464,3.8595,1085.2,1082.0,58.8456]
[1610336907666,2.0382,1085.2,1082.0,58.8456]
[1610336908064,1.847,1085.5,1082.0,58.8456]
[1610336908664,4.00959,1085.3,1084.8,4.00959]
[1610336908865,6.02259,1085.3,1084.8,4.00959]
[1610336909366,2.013,1085.3,1084.8,4.00959]
[1610336909966,2.491,1085.6,1084.8,4.00959]
[1610336910169,60.0611,1085.9,1084.8,5.57609]
[1610336910767,4.00959,1085.5,1085.0,4.00959]
[1610336910968,4.00959,1085.5,1085.0,3.74769]
[1610336911167,4.00959,1085.5,1084.8,1.5665]
[1610336911368,4.00959,1085.5,1084.8,1.4598]
[1610336911767,4.00959,1085.5,1084.8,1.0231]
[1610336911969,4.00959,1085.5,1084.8,0.0727]
[1610336912169,4.00959,1085.5,1082.0,58.8456]
[1610336912670,4.00959,1084.2,1083.8,4.00959]
[1610336913670,4.00959,1084.2,1083.8,3.69859]
[1610336913870,4.00959,1084.2,1083.8,2.30299]
[1610336914070,4.00959,1084.2,1083.8,0.45099]
[1610336914671,2.447,1085.6,1083.8,0.34429]
[1610336914874,4.2864,1085.6,1083.8,1.93329]
[1610336915672,2.447,1085.6,1083.8,0.77879]
[1610336915874,2.447,1085.6,1083.8,0.68189]
[1610336916073,2.447,1085.6,1083.8,9e-05]
[1610336916474,2.447,1085.6,1083.5,2.223]
[1610336916675,4.00959,1083.6,1083.5,2.223]
[1610336916874,4.00959,1083.6,1083.5,1.1264]
[1610336917077,4.00959,1083.6,1083.5,0.008]
[1610336917277,4.00959,1083.6,1082.0,1.8833]
[1610336917477,6.44359,1083.6,1081.3,5.8458]
[1610336917880,8.30289,1083.6,1081.3,5.8458]
[1610336918577,8.30289,1083.6,1081.2,2.2465]
[1610336918777,4.00959,1081.6,1081.3,4.00959]
[1610336919179,4.00959,1081.6,1081.4,1.93759849]
[1610336919378,4.00959,1081.6,1081.4,0.34739849]
[1610336919579,4.00959,1081.6,1081.4,0.22059849]
[1610336919779,30.0,1087.7,1079.5,8.67472035]
[1610336919978,34.146,1087.7,1079.6,0.28268512]
[1610336920179,34.146,1087.7,1079.5,8.3921]
[1610336920480,1.41333894,1087.6,1079.7,1.77315206]
[1610336920678,4.00959,1079.9,1079.7,1.77315206]
[1610336920879,2.1844,1086.6,1079.7,1.77315206]
[1610336921079,30.0,1086.5,1079.7,1.77315206]
[1610336921980,1.41338168,1086.4,1079.6,1.77312847]
[1610336922180,10.7332,1083.6,1079.6,1.77312847]
[1610336922381,1.41338168,1086.4,1079.6,1.77312847]
[1610336922780,1.41338168,1086.4,1081.1,4.00959]
[1610336922983,1.41338168,1086.4,1081.1,1.5173]
[1610336923381,33.23858168,1086.4,1081.1,1.3141]
[1610336923780,3.23858168,1086.4,1081.1,1.3141]
[1610336924680,4.00959,1084.1,1082.9,4.00959]
[1610336925080,1.41189412,1086.3,1082.9,6.08179]
[1610336926082,1.8519,1086.7,1082.9,6.08179]
[1610336926680,1.8519,1086.7,1084.4,4.00959]
[1610336926681,4.00959,1085.0,1084.4,4.00959]
[1610336927082,1.8338,1086.1,1084.4,4.00959]
[1610336927281,1.8338,1086.1,1084.4,3.95419]
[1610336927481,0.92018,1086.8,1084.4,5.34919]
[1610336927682,1.41054445,1086.6,1084.4,5.34919]
[1610336928482,1.8242,1087.3,1084.4,5.34919]
[1610336928685,1.8242,1087.3,1085.0,4.00959]
[1610336928881,1.8242,1087.3,1085.0,5.89669]
[1610336929282,1.8242,1087.3,1085.0,1.41]
[1610336929482,1.8242,1087.3,1085.0,0.0231]
[1610336929882,1.8243,1087.7,1085.0,0.0231]
[1610336930483,1.40965524,1087.2,1085.0,0.0231]
[1610336930683,4.00959,1085.4,1085.0,0.0231]
[1610336930886,1.8409,1086.8,1085.0,0.0231]
[1610336931084,1.40965524,1087.2,1085.0,0.0231]
[1610336932086,1.8424,1088.0,1085.0,0.0231]
[1610336932087,1.40905154,1087.4,1085.0,0.0231]
[1610336932687,4.00959,1086.5,1085.9,4.00959]
[1610336932890,1.40905154,1087.4,1085.9,4.00959]
[1610336933088,1.40905154,1087.4,1085.9,6.24579]
[1610336933488,56.414,1088.1,1085.9,6.24579]
[1610336933885,1.8164,1088.0,1085.9,6.24579]
[1610336934687,4.00959,1087.3,1086.9,4.00959]
[1610336935288,1.5237,1089.2,1086.9,5.98289]
[1610336935488,24.07951714,1091.3,1086.9,5.98289]
[1610336935688,24.17802692,1091.9,1086.9,35.98289]
[1610336936091,24.26158882,1092.8,1086.9,35.98289]
[1610336936291,1.40519531,1090.6,1086.9,35.98289]
[1610336936490,2.4579,1093.4,1086.9,5.98289]
[1610336936693,4.00959,1091.9,1088.0,4.00959]
[1610336936891,6.43389,1091.9,1088.0,4.00959]
[1610336937391,8.27849,1091.9,1088.0,4.00959]
[1610336937592,31.40435502,1091.8,1086.9,1.9733]
[1610336938395,6.3069,1091.7,1086.9,1.9733]
[1610336938597,7.4391,1091.6,1086.9,1.9733]
[1610336938797,6.47319,1090.0,1089.4,4.00959]